bitfinex/quotes_ETHUSD_20240902
["timestamp","ask_amount","ask_price","bid_price","bid_amount"]
[1725293708726,7.91336,2527.4,2527.1,2.403]
[1725293708874,2.2501,2527.8,2527.1,3.95701]
[1725293709083,2.2501,2527.8,2527.2,1.181101]
[1725293709315,3.95624,2527.7,2527.2,5.137981]
[1725293709731,3.95624,2527.7,2527.3,3.95674]
[1725293710822,3.95648,2527.5,2527.2,0.631101]
[1725293711123,3.95664,2527.4,2527.0,6.31112]
[1725293714147,2.2501,2527.8,2527.0,6.31112]
[1725293714148,3.95656,2527.5,2527.0,6.31112]
[1725293714444,3.95674,2527.4,2527.1,0.631112]
[1725293716301,3.95674,2527.4,2527.2,0.07884534]
[1725293717349,3.95679,2527.3,2527.2,0.07884534]
[1725293717647,3.95634,2527.6,2527.2,2.35334534]
[1725293717812,3.95634,2527.6,2527.3,0.29844573]
[1725293718336,3.95634,2527.6,2527.4,0.07877554]
[1725293719759,10.37094,2527.5,2527.4,0.07877554]
[1725293719955,10.37094,2527.5,2526.4,13.63311]
[1725293719956,3.9575,2526.9,2526.4,13.63311]
[1725293720139,6.41529,2527.0,2526.6,0.07630909]
[1725293720311,3.95729,2527.0,2526.6,0.07630909]
[1725293720518,3.95729,2527.0,2526.6,3.841046]
[1725293721012,3.95742,2526.9,2526.6,3.841046]
[1725293721216,3.95665,2527.4,2526.6,0.07630909]
[1725293721217,3.95773,2526.7,2526.6,0.07630909]
[1725293721541,10.24446,2526.7,2526.6,0.07630909]
[1725293721866,3.95819,2526.5,2526.1,27.26]
[1725293723457,3.9583,2526.4,2526.1,27.26]
[1725293723667,3.95839,2526.3,2526.1,27.26]
[1725293723869,3.95839,2526.3,2525.9,19.98]
[1725293724161,3.95839,2526.3,2525.9,22.02292845]
[1725293725728,3.95815,2526.5,2525.9,22.02292845]
[1725293726127,3.9583,2526.4,2525.9,22.02292845]
[1725293726467,3.9586,2526.2,2525.9,22.02292845]
[1725293726756,3.9586,2526.2,2526.0,2.20229284]
[1725293730265,3.9586,2526.2,2525.7,7.28]
[1725293730421,3.95945,2525.7,2525.5,19.98]
[1725293730624,3.95945,2525.7,2525.3,22.2539]
[1725293730924,3.95945,2525.7,2525.5,2.17939]
[1725293731175,3.95924,2525.8,2525.5,2.17939]
[1725293731374,3.95924,2525.8,2525.6,0.07367001]
[1725293732136,3.95899,2525.9,2525.6,0.07367001]
[1725293732774,10.2255,2526.2,2525.6,4.65428501]
[1725293732971,3.95869,2526.1,2525.6,4.03301001]
[1725293733172,3.95869,2526.1,2525.7,0.62124]
[1725293733374,3.95869,2526.1,2525.8,0.07382126]
[1725293733681,3.95869,2526.1,2525.7,0.62124]
[1725293733887,3.95869,2526.1,2525.9,0.07378632]
[1725293734057,3.95869,2526.1,2525.7,0.62124]
[1725293734058,3.95869,2526.1,2525.8,0.07382126]
[1725293734258,3.95869,2526.1,2526.0,0.07375138]
[1725293734474,3.95869,2526.1,2525.9,0.07378632]
[1725293734688,3.95869,2526.1,2526.0,0.07375138]
[1725293735383,3.95869,2526.1,2525.7,0.62124]
[1725293735607,3.95882,2526.0,2525.7,0.62124]
[1725293735745,3.95882,2526.0,2525.6,23.93934]
[1725293736064,10.2255,2526.2,2525.6,27.8987]
[1725293736245,6.26684,2526.2,2525.6,23.93934]
[1725293736445,3.95868,2526.1,2525.7,3.339873]
[1725293737946,3.95899,2525.9,2525.7,3.339873]
[1725293738149,3.95944,2525.7,2525.2,19.98]
[1725293738372,3.95955,2525.6,2525.2,19.98]
[1725293738756,3.95955,2525.6,2525.2,23.94008]
[1725293738962,2.3136,2525.7,2525.2,23.94]
[1725293739293,2.3136,2525.9,2525.5,3.95954]
[1725293739496,2.48349776,2527.0,2525.6,3.95943]
[1725293739497,6.27208,2526.3,2525.6,3.95943]
[1725293739661,6.27208,2526.3,2525.6,4.355384]
[1725293739991,3.95869,2526.1,2525.6,4.355324]
[1725293740292,7.91711,2526.2,2525.7,3.95924]
[1725293740593,3.95852,2526.2,2525.7,5.06665453]
[1725293740746,7.91712,2526.2,2525.7,5.06665453]
[1725293741166,2.3136,2526.3,2525.8,3.95913]
[1725293741488,2.379,2526.5,2526.0,3.95881]
[1725293741699,2.379,2526.5,2526.1,3.9586]
[1725293741859,2.379,2526.5,2526.2,3.9585]
[1725293742061,3.95775,2526.7,2526.2,7.91694]
[1725293742268,3.9579,2526.6,2526.2,3.95844]
[1725293742597,6.33667,2526.8,2526.3,3.95827]
[1725293742788,3.95773,2526.7,2526.3,3.95827]
[1725293743397,6.33667,2526.8,2526.3,3.95827]
[1725293743547,10.29436,2526.8,2526.3,3.95827]
[1725293744185,3.9578,2526.7,2526.2,4.750204]
[1725293744369,3.95789,2526.6,2526.1,3.95865]
[1725293744556,3.95789,2526.6,2526.1,7.91723]
[1725293744783,3.95789,2526.6,2526.1,3.95858]
[1725293745188,7.91586,2526.6,2526.1,3.95858]
[1725293745366,3.95789,2526.6,2526.1,3.95858]
[1725293745565,7.91585,2526.6,2526.1,7.904966]
[1725293745776,3.95789,2526.6,2526.1,7.904966]
[1725293746160,6.33668,2526.8,2526.1,3.946386]
[1725293746411,6.33668,2526.8,2526.3,3.95828]
[1725293746412,10.29436,2526.8,2526.3,3.95828]
[1725293746564,3.95777,2526.7,2526.3,3.95828]
[1725293746763,3.95777,2526.7,2526.4,0.07350111]
[1725293747808,3.95777,2526.7,2526.5,0.07346619]
[1725293748212,3.95777,2526.7,2526.2,24.3331286]
[1725293748418,3.95777,2526.7,2526.6,0.07343127]
[1725293748566,3.95777,2526.7,2526.3,4.98384206]
[1725293748909,3.95777,2526.7,2526.4,0.07350111]
[1725293749287,7.91562,2526.7,2526.4,0.07350111]
[1725293749901,7.91562,2526.7,2526.2,20.3746386]
[1725293750097,3.95777,2526.7,2526.5,0.07343671]
[1725293750298,7.91558,2526.7,2526.2,24.3331286]
[1725293750502,3.95777,2526.7,2526.6,0.07340916]
[1725293750726,3.95777,2526.7,2526.2,24.3331286]
[1725293751189,3.95814,2526.5,2526.3,0.07351393]
[1725293753820,3.95814,2526.5,2526.4,0.07348637]
[1725293754720,3.95814,2526.5,2526.1,3.95865]
[1725293754877,3.95814,2526.5,2526.4,0.07348637]
[1725293755077,3.95814,2526.5,2526.1,5.707229]
[1725293755327,3.95814,2526.5,2526.4,0.07348637]
[1725293755532,3.95814,2526.5,2526.1,5.707229]
[1725293755690,2.379,2526.8,2526.5,3.95801]
[1725293756085,2.379,2526.8,2526.6,0.07320276]
[1725293756283,2.4771,2527.0,2526.6,4.03107276]
[1725293757024,4.23025448,2527.6,2526.8,3.95754]
[1725293757025,10.39095,2527.3,2526.8,3.95754]
[1725293757349,10.39095,2527.3,2526.9,0.07306853]
[1725293757550,3.0,2527.2,2526.9,0.07306853]
[1725293757925,6.95695,2527.2,2526.9,0.07306853]
[1725293758256,3.95711,2527.1,2526.9,0.07306853]
[1725293758653,3.95711,2527.1,2526.7,3.95757]
[1725293758859,3.95711,2527.1,2527.0,0.07290098]
[1725293759067,3.95711,2527.1,2526.7,3.95757]
[1725293759226,3.95711,2527.1,2527.0,0.07290098]
[1725293759413,3.95711,2527.1,2526.7,3.95757]
[1725293759724,3.95711,2527.1,2526.7,3.95772]
[1725293759926,3.95697,2527.2,2526.8,0.0729708]
[1725293760118,3.95697,2527.2,2526.7,3.95765]
[1725293760312,3.95697,2527.2,2526.8,0.0729708]
[1725293760520,3.95697,2527.2,2526.8,3.95756]
[1725293760742,3.95697,2527.2,2526.9,0.07293589]
[1725293761265,2.4771,2527.3,2526.9,0.07293589]
[1725293761416,10.34822,2527.0,2526.9,0.07293589]
[1725293761616,3.95834,2526.4,2525.9,9.748]
[1725293761847,7.91664,2526.4,2525.9,6.42696]
[1725293762048,7.91661,2526.4,2526.0,3.036596]
[1725293762265,3.9583,2526.4,2526.0,3.036596]
[1725293762557,3.95852,2526.2,2525.7,2.468]
[1725293762764,6.39242,2526.1,2525.4,2.468]
[1725293762967,3.95901,2525.9,2525.4,6.42769]
[1725293763267,3.95933,2525.7,2525.5,0.642769]
[1725293763550,3.95933,2525.7,2525.2,3.95996]
[1725293763755,3.95901,2525.9,2525.5,3.9596]
[1725293763911,3.95877,2526.1,2525.6,3.95931]
[1725293764117,3.95877,2526.1,2525.7,0.395931]
[1725293764312,3.95877,2526.1,2525.6,3.95931]
[1725293764511,3.95852,2526.2,2525.6,3.95931]
[1725293765057,3.95871,2526.1,2525.6,3.95931]
[1725293765853,3.95871,2526.1,2525.6,4.751206]
[1725293766659,3.95885,2526.0,2525.6,0.791896]
[1725293766958,7.91777,2526.0,2525.4,7.91933]
[1725293767163,3.95885,2526.0,2525.5,5.17451845]
[1725293767329,3.95862,2526.2,2525.5,1.21495845]
[1725293767534,3.95933,2525.7,2525.1,2.3484]
[1725293767869,3.95954,2525.6,2525.1,9.30863]
[1725293768162,3.95954,2525.6,2525.1,10.82690861]
[1725293768163,7.91908,2525.6,2525.1,10.82690861]
[1725293768372,3.95954,2525.6,2525.1,10.82690861]
[1725293768533,3.95954,2525.6,2525.2,1.50571631]
[1725293771068,3.95961,2525.5,2525.0,8.19063448]
[1725293771439,3.95961,2525.5,2525.1,3.96019]
[1725293771775,3.95946,2525.6,2525.2,0.792057]
[1725293772795,3.95962,2525.5,2525.0,3.96038]
[1725293773845,3.95977,2525.4,2525.0,3.96038]
[1725293774041,3.95961,2525.5,2525.0,3.96038]
[1725293774239,6.26431,2525.7,2525.2,3.96007]
[1725293774464,3.95915,2525.8,2525.3,3.9599]
[1725293774776,3.95932,2525.7,2525.2,3.96007]
[1725293776046,3.95932,2525.7,2525.2,7.92007]
[1725293776446,3.95932,2525.7,2525.3,0.06910503]
[1725293776872,3.95932,2525.7,2525.2,7.91999]
[1725293777049,3.95932,2525.7,2525.4,0.06907008]
[1725293777386,3.95932,2525.7,2525.5,0.06903513]
[1725293777705,3.95932,2525.7,2525.2,3.95999]
[1725293777894,3.95932,2525.7,2525.6,0.06900018]
[1725293778482,3.95932,2525.7,2525.2,3.95999]
[1725293778672,3.95932,2525.7,2525.6,0.06900018]
[1725293778872,3.95932,2525.7,2525.3,3.95991]
[1725293779066,3.95932,2525.7,2525.6,0.06900018]
[1725293779266,3.95932,2525.7,2525.2,5.54248322]
[1725293779473,3.95932,2525.7,2525.6,0.06900018]
[1725293779641,3.95946,2525.6,2525.2,3.95999]
[1725293779841,6.39856,2525.6,2525.2,3.95999]
[1725293780056,6.39856,2525.6,2525.0,5.17540245]
[1725293780289,3.95978,2525.4,2525.0,3.96028]
[1725293781650,3.95978,2525.4,2524.9,3.96053]
[1725293782047,2.2837,2525.2,2524.8,3.96068]
[1725293782277,6.24378,2525.2,2524.8,3.96068]
[1725293782442,6.24378,2525.2,2524.8,5.47586645]
[1725293783415,2.2837,2525.2,2524.8,9.43648645]
[1725293783589,3.95992,2525.3,2524.9,3.96053]
[1725293783788,6.23698,2525.7,2525.1,3.96023]
[1725293784007,10.19636,2525.7,2525.2,3.96001]
[1725293784318,6.23698,2525.7,2525.2,3.96001]
[1725293784525,2.2776,2525.7,2524.9,3.96041]
[1725293784724,2.3033,2525.2,2524.8,3.96068]
[1725293785027,2.3033,2525.2,2524.7,3.96086]
[1725293785028,6.26341,2525.2,2524.7,3.96086]
[1725293785234,3.96023,2525.1,2524.7,3.96086]
[1725293785378,3.96023,2525.1,2524.6,27.90188]
[1725293785718,3.96023,2525.1,2524.7,3.96083]
[1725293790498,3.96023,2525.1,2524.6,19.98]
[1725293790499,3.9605,2525.0,2524.6,19.98]
[1725293790909,2.323,2525.4,2524.9,3.96055]
[1725293791110,6.28283,2525.4,2524.9,3.96048]
[1725293791404,6.28283,2525.4,2525.0,0.07040445]
[1725293791603,6.28283,2525.4,2525.0,4.03077445]
[1725293792013,2.323,2525.4,2525.0,7.99109445]
[1725293792223,2.2911,2525.7,2525.3,3.95981]
[1725293792429,2.2911,2525.7,2525.3,3.95991]
[1725293792630,2.2911,2525.7,2525.4,0.07045646]
[1725293795455,2.2911,2525.7,2525.4,4.43323611]
[1725293795751,2.2911,2525.7,2525.4,0.47348611]
[1725293796153,6.25041,2525.7,2525.4,0.47348611]
[1725293796338,6.25041,2525.7,2525.4,0.07045646]
[1725293796540,2.2911,2525.7,2525.4,0.07045646]
[1725293798184,6.25047,2525.7,2525.4,0.07045646]
[1725293798554,6.25047,2525.7,2525.1,23.94011]
[1725293798749,6.25047,2525.7,2525.5,0.07059114]
[1725293798979,6.25047,2525.7,2525.2,3.96]
[1725293799189,6.25047,2525.7,2525.6,0.07055619]
[1725293799355,6.25047,2525.7,2525.2,3.96]
[1725293799557,6.25047,2525.7,2525.6,0.07055619]
[1725293800056,6.25047,2525.7,2525.2,3.96]
[1725293800259,6.25047,2525.7,2525.6,0.07055619]
[1725293800455,6.25047,2525.7,2525.2,3.96]
[1725293800762,6.25047,2525.7,2525.6,0.07055619]
[1725293800968,6.25047,2525.7,2525.2,3.96]
[1725293801151,6.25047,2525.7,2525.2,6.83071399]
[1725293801352,6.25047,2525.7,2525.3,0.06838263]
[1725293801804,3.9595,2525.6,2525.4,0.06834767]
[1725293801981,3.9595,2525.6,2525.1,19.98]
[1725293802163,3.9595,2525.6,2525.2,0.06841758]
[1725293802164,2.4531,2525.3,2525.2,0.06841758]
[1725293803968,2.4531,2525.3,2524.9,3.96044]
[1725293804514,6.41304,2525.3,2525.0,0.06817026]
[1725293807404,2.4531,2525.3,2525.0,0.06817026]
[1725293807577,4.58464,2525.6,2525.0,6.42939129]
[1725293807578,6.42898,2525.6,2525.0,6.42939129]
[1725293807780,3.95969,2525.5,2525.0,6.42939129]
[1725293808196,2.4694,2525.6,2525.0,2.46903129]
[1725293808532,2.4694,2525.6,2525.3,3.95981]
[1725293809026,2.3377,2525.8,2525.4,4.02809027]
[1725293809236,2.3377,2525.8,2525.4,4.02801027]
[1725293813704,2.3377,2525.8,2525.4,7.98770027]
[1725293813905,2.3377,2525.8,2525.5,3.95959]
[1725293814115,2.3377,2525.8,2525.5,4.02789532]
[1725293816192,6.26205,2526.0,2525.5,4.02789532]
[1725293816651,2.3032,2526.0,2525.7,3.95919]
[1725293817117,2.3032,2526.0,2525.8,0.06820049]
[1725293817317,2.3032,2526.0,2525.7,3.95919]
[1725293817552,2.3032,2526.0,2525.9,0.06816555]
[1725293817856,2.3032,2526.0,2525.8,0.06820049]
[1725293818000,2.3032,2526.0,2525.9,0.06816555]
[1725293818436,2.3032,2526.0,2525.7,3.95919]
[1725293818640,2.3032,2526.0,2525.9,0.06816555]
[1725293818845,2.3032,2526.0,2525.8,0.06820049]
[1725293819161,2.3032,2526.0,2525.7,3.95919]
[1725293819440,2.3032,2526.0,2525.8,0.06820049]
[1725293819602,2.3032,2526.0,2525.7,3.95919]
[1725293820112,2.3032,2526.0,2525.8,0.06820049]
[1725293820547,2.3032,2526.0,2525.7,3.95919]
[1725293820879,2.3032,2526.0,2525.4,2.4851525]
[1725293820880,3.95902,2525.9,2525.4,2.4851525]
[1725293821048,3.95902,2525.9,2525.4,3.95969]
[1725293821377,3.95902,2525.9,2525.5,0.06797339]
[1725293825656,3.95914,2525.8,2525.5,0.06797339]
[1725293830347,7.91838,2525.8,2525.5,0.06797339]
[1725293830765,3.95914,2525.8,2525.5,0.06797339]
[1725293832998,6.45235,2525.6,2525.5,0.06797339]
[1725293833415,6.45235,2525.6,2525.2,19.98]
[1725293833577,6.45235,2525.6,2525.5,0.06799552]
[1725293833776,6.45235,2525.6,2525.3,19.98]
[1725293834119,6.45235,2525.6,2525.4,0.0678313]
[1725293834991,2.4929,2525.6,2525.4,0.0678313]
[1725293835317,7.91922,2525.5,2525.4,0.0678313]
[1725293835686,5.72426925,2525.7,2524.7,5.72570925]
[1725293835687,3.96008,2525.3,2524.7,5.72570925]
[1725293835892,3.96054,2525.0,2524.5,1.76495925]
[1725293836101,2.2859,2524.9,2524.8,0.06807794]
[1725293836299,2.2859,2524.9,2524.5,5.72611925]
[1725293836509,2.2859,2525.2,2524.8,0.06819597]
[1725293836709,6.24567,2525.4,2524.9,5.72548925]
[1725293836915,10.20554,2525.4,2524.9,5.72548925]
[1725293837099,10.20554,2525.4,2525.0,0.06813341]
[1725293837486,3.95993,2525.3,2525.0,0.06813341]
[1725293837824,6.24567,2525.4,2525.0,0.06813341]
[1725293838279,10.20557,2525.4,2525.0,0.06813341]
[1725293838977,6.24567,2525.4,2525.0,0.06813341]
[1725293839579,10.20552,2525.4,2525.0,0.06813341]
[1725293839886,6.24567,2525.4,2525.0,0.06813341]
[1725293840276,6.29126,2525.6,2525.1,3.96013]
[1725293840516,6.29126,2525.6,2525.1,7.98855077]
[1725293841624,6.29126,2525.6,2525.1,7.98854077]
[1725293841917,6.24134,2525.8,2525.3,3.9599]
[1725293842225,10.20057,2525.8,2525.3,3.9599]
[1725293842520,6.24133,2525.8,2525.4,0.06805261]
[1725293842675,10.20057,2525.8,2525.4,0.06805261]
[1725293843288,3.95937,2525.7,2525.4,0.06805261]
[1725293843683,3.95937,2525.7,2525.2,3.96006]
[1725293843885,3.95937,2525.7,2525.5,0.06826845]
[1725293844218,3.95937,2525.7,2525.3,3.95992]
[1725293844445,3.95937,2525.7,2525.6,0.06823351]
[1725293844724,2.2821,2525.8,2525.6,0.06823351]
[1725293844725,6.24124,2525.8,2525.6,0.06823351]
[1725293845023,2.2821,2525.8,2525.4,3.95975]
[1725293845629,6.24124,2525.8,2525.5,0.06826845]
[1725293846902,2.2821,2525.8,2525.5,0.06826845]
[1725293847103,2.3023,2526.1,2525.6,3.95942]
[1725293847332,6.26105,2526.1,2525.6,4.02765351]
[1725293847503,6.26105,2526.1,2525.6,4.02761351]
[1725293847687,6.26105,2526.1,2525.7,3.95929]
[1725293847887,2.3023,2526.1,2525.7,3.95929]
[1725293848100,2.3023,2526.1,2525.8,0.06816362]
[1725293848299,6.26098,2526.1,2525.8,0.06816362]
[1725293848530,6.26098,2526.1,2525.7,3.95929]
[1725293848732,6.26098,2526.1,2525.9,0.06812868]
[1725293849037,6.26098,2526.1,2525.7,3.95929]
[1725293849636,3.95885,2526.0,2525.8,0.06816362]
[1725293850037,3.95885,2526.0,2525.6,3.95944]
[1725293850197,3.95885,2526.0,2525.9,0.06812868]
[1725293850747,3.95885,2526.0,2525.6,3.95944]
[1725293850890,3.95885,2526.0,2525.9,0.06812868]
[1725293851090,3.95885,2526.0,2525.6,3.95944]
[1725293851335,3.95885,2526.0,2525.9,0.06812868]
[1725293851543,3.95885,2526.0,2525.6,3.95944]
[1725293851712,3.95885,2526.0,2525.9,0.06812868]
[1725293852034,3.95885,2526.0,2525.6,3.95944]
[1725293852233,3.95885,2526.0,2525.9,0.06812868]
[1725293852391,3.95885,2526.0,2525.6,3.95944]
[1725293852591,3.95885,2526.0,2525.9,0.06812868]
[1725293852908,6.26099,2526.1,2525.9,0.06812868]
[1725293853092,6.26099,2526.1,2525.6,3.95944]
[1725293853538,6.26099,2526.1,2525.7,0.06819856]
[1725293854042,6.39006,2526.3,2525.7,4.02744856]
[1725293854221,9.38966,2526.6,2526.1,3.95859]
[1725293854433,6.38966,2526.6,2526.1,3.95858]
[1725293854749,6.38966,2526.6,2526.2,4.02608981]
[1725293854750,2.4317,2526.6,2526.2,4.02608981]
[1725293855245,2.4317,2526.6,2526.3,3.95834]
[1725293855656,6.32189,2526.8,2526.4,0.067268]
[1725293855857,7.349819,2526.8,2526.4,4.025448]
[1725293856005,3.392229,2526.8,2526.4,4.025448]
[1725293856346,6.4177,2527.0,2526.5,3.95802]
[1725293856552,6.41766,2527.0,2526.5,4.02525308]
[1725293856709,4.599196,2526.9,2526.5,0.06723308]
[1725293857133,4.599196,2526.9,2526.3,7.91655]
[1725293857338,3.9578,2526.7,2526.6,0.06691058]
[1725293857652,3.95794,2526.6,2526.0,23.93882]
[1725293857951,3.95794,2526.6,2526.0,27.15082893]
[1725293857952,3.95821,2526.4,2526.0,27.15082893]
[1725293858707,3.95821,2526.4,2526.0,23.19200893]
[1725293860250,3.95821,2526.4,2526.0,3.21200893]
[1725293861158,3.95838,2526.3,2525.9,2.4573]
[1725293861611,3.95838,2526.3,2525.8,25.70396925]
[1725293861820,3.95838,2526.3,2525.8,29.64751118]
[1725293863813,3.95884,2526.0,2525.8,19.98]
[1725293864128,3.95884,2526.0,2525.5,28.16921925]
[1725293864921,7.91776,2526.0,2525.5,28.16921925]
[1725293865121,7.91776,2526.0,2525.5,31.38210618]
[1725293865122,3.95884,2526.0,2525.5,31.38210618]
[1725293865322,3.95884,2526.0,2525.5,27.42254618]
[1725293865575,6.2793,2525.9,2525.5,24.95784618]
[1725293865750,2.3202,2525.9,2525.5,28.91743618]
[1725293865917,2.3202,2526.5,2525.5,28.91743618]
[1725293866267,3.95905,2525.9,2525.5,24.95784618]
[1725293866461,3.95905,2525.9,2525.6,0.06717142]
[1725293866622,7.91813,2525.9,2525.6,0.06717142]
[1725293866814,10.39203,2525.9,2525.6,0.06717142]
[1725293867017,6.43295,2525.9,2525.6,0.06717142]
[1725293867357,10.39205,2525.9,2525.6,0.06717142]
[1725293867723,10.39203,2525.9,2525.6,0.06717142]
[1725293868231,3.95915,2525.8,2525.6,0.06717142]
[1725293868838,3.95929,2525.7,2525.6,0.06717142]
[1725293869159,3.95946,2525.6,2525.3,19.98]
[1725293869383,3.95946,2525.6,2525.3,23.44237959]
[1725293870267,3.95993,2525.3,2525.0,1.76495925]
[1725293870469,3.95993,2525.3,2524.9,6.42964]
[1725293870643,3.95993,2525.3,2525.0,3.0]
[1725293870843,3.95993,2525.3,2525.1,0.942964]
[1725293871146,3.96016,2525.2,2525.0,3.0]
[1725293872042,3.96016,2525.2,2524.9,19.98]
[1725293874554,3.95994,2525.3,2524.9,19.98]
[1725293874755,3.95994,2525.3,2525.0,2.394062]
[1725293880543,6.28235,2525.5,2525.0,8.707962]
[1725293880757,3.95946,2525.6,2525.2,3.96007]
[1725293881086,3.95946,2525.6,2525.2,0.87869372]
[1725293881283,3.95946,2525.6,2525.1,3.96022]
[1725293881452,3.95946,2525.6,2525.3,0.06726669]
[1725293881650,6.34312,2525.7,2525.2,0.06730164]
[1725293881857,3.9591,2525.9,2525.4,0.06723173]
[1725293882166,3.95923,2525.8,2525.5,0.06773515]
[1725293882489,3.95923,2525.8,2525.3,3.95982]
[1725293882683,3.95923,2525.8,2525.6,0.06766332]
[1725293883050,3.95923,2525.8,2525.3,5.30289949]
[1725293883249,3.95923,2525.8,2525.7,0.06762837]
[1725293883479,3.95923,2525.8,2525.3,3.95982]
[1725293883801,3.9593,2525.7,2525.3,3.95982]
[1725293883954,3.9593,2525.7,2525.4,0.06773322]
[1725293884450,3.95915,2525.8,2525.4,0.06773322]
[1725293886702,2.4409,2525.6,2525.4,0.06773322]
[1725293886887,3.95961,2525.5,2525.4,0.06773322]
[1725293887202,3.95961,2525.5,2525.0,8.708032]
[1725293887358,3.95961,2525.5,2525.4,0.06738652]
[1725293887557,3.95961,2525.5,2524.8,26.62119955]
[1725293887558,3.95998,2525.3,2524.8,19.98]
[1725293887761,6.321,2525.2,2524.8,19.98]
[1725293888595,3.96025,2525.1,2524.8,19.98]
[1725293890105,3.96055,2524.9,2524.8,19.98]
[1725293890276,7.9211,2524.9,2524.8,19.98]
[1725293890453,10.2674,2524.9,2524.8,19.98]
[1725293891299,6.30685,2524.9,2524.8,19.98]
[1725293895508,10.2674,2524.9,2524.8,19.98]
[1725293895871,6.30685,2524.9,2524.8,19.98]
[1725293896075,3.96079,2524.8,2524.6,19.98]
[1725293896307,3.96079,2524.8,2524.7,0.06376632]
[1725293902095,3.96079,2524.8,2524.5,0.40013743]
[1725293902295,3.96079,2524.8,2524.6,0.06433251]
[1725293904306,6.30686,2524.9,2524.6,0.06433251]
[1725293906447,6.43776,2524.7,2524.6,0.06433251]
[1725293906608,6.43776,2524.7,2523.9,20.04901171]
[1725293906609,3.96153,2524.3,2524.0,0.40061318]
[1725293906997,6.37443,2524.3,2523.8,9.7101]
[1725293907122,3.96134,2524.4,2523.9,5.329361]
[1725293907323,2.2816,2524.6,2524.2,3.96151]
[1725293907573,7.92182,2524.7,2524.2,8.22057583]
[1725293907744,3.96087,2524.7,2524.2,8.61672683]
[1725293908067,3.96087,2524.7,2524.2,6.850561]
[1725293908428,7.92183,2524.7,2524.2,6.850561]
[1725293908630,7.92183,2524.7,2524.2,2.889051]
[1725293909330,3.96087,2524.7,2524.2,2.889051]
[1725293909930,7.92183,2524.7,2524.2,2.889051]
[1725293910170,3.96087,2524.7,2524.2,2.889051]
[1725293910630,7.92182,2524.7,2524.2,2.889051]
[1725293911173,3.96106,2524.6,2524.1,3.96168]
[1725293911474,3.96106,2524.6,2523.9,5.329231]
[1725293911475,3.96118,2524.5,2524.3,0.06008509]
[1725293911632,3.96118,2524.5,2524.2,0.06012008]
[1725293911827,3.96118,2524.5,2524.4,0.06005011]
[1725293912029,3.96133,2524.4,2524.3,0.06008509]
[1725293912256,3.96133,2524.4,2523.9,5.329231]
[1725293912843,3.96133,2524.4,2523.9,9.291271]
[1725293913178,3.96118,2524.5,2524.0,6.04453368]
[1725293915535,3.96136,2524.4,2523.9,5.329231]
[1725293915764,3.96118,2524.5,2524.0,3.96195]
[1725293917076,6.44113,2524.6,2524.1,3.96172]
[1725293917281,2.3998,2524.8,2524.3,3.96141]
[1725293918670,3.96088,2524.7,2524.2,6.23972]
[1725293919055,3.96088,2524.7,2524.2,3.96162]
[1725293919056,7.92186,2524.7,2524.2,3.96162]
[1725293919492,8.954026,2524.7,2524.2,3.96162]
[1725293919698,3.96104,2524.6,2524.2,3.96162]
[1725293919853,3.96104,2524.6,2524.1,3.96167]
[1725293920048,3.96125,2524.5,2524.0,6.30955]
[1725293920490,3.96125,2524.5,2524.1,3.9618]
[1725293920995,6.21715,2524.5,2524.1,3.9618]
[1725293922677,6.21715,2524.5,2524.0,3.96194]
[1725293925390,3.96134,2524.4,2523.9,9.291291]
[1725293926452,3.96134,2524.4,2524.0,0.05960942]
[1725293927665,7.92279,2524.4,2524.0,0.05960942]
[1725293928901,3.96166,2524.2,2524.0,0.05960942]
[1725293929193,3.96166,2524.2,2523.8,7.28]
[1725293929194,3.96166,2524.2,2523.8,11.2422]
[1725293929489,3.96166,2524.2,2524.1,0.05972209]
[1725293929991,3.96166,2524.2,2523.8,11.2422]
[1725293930149,3.96166,2524.2,2524.1,0.05972209]
[1725293930350,3.96166,2524.2,2523.8,11.2422]
[1725293930594,3.96166,2524.2,2524.1,0.05972209]
[1725293930762,3.96166,2524.2,2523.8,11.2422]
[1725293930966,3.96166,2524.2,2524.1,0.05972209]
[1725293931166,3.96166,2524.2,2523.8,11.2422]
[1725293931378,3.96166,2524.2,2524.1,0.05994358]
[1725293931585,3.96166,2524.2,2523.8,11.2422]
[1725293931894,3.96166,2524.2,2524.1,0.05994358]
[1725293932119,3.96198,2524.0,2523.8,7.28]
[1725293932251,3.96198,2524.0,2523.5,19.98]
[1725293932768,3.96228,2523.8,2523.5,19.98]
[1725293933099,3.96212,2523.9,2523.5,23.94274]
[1725293933393,3.96212,2523.9,2523.5,29.64627241]
[1725293933756,7.92407,2524.0,2523.5,29.64627241]
[1725293933957,7.92403,2524.0,2523.5,29.64620241]
[1725293934163,3.96198,2524.0,2523.5,29.64620241]
[1725293934702,3.96182,2524.1,2523.6,3.9625]
[1725293935067,7.92372,2524.1,2523.6,3.9625]
[1725293935265,7.92371,2524.1,2523.6,3.9625]
[1725293935657,3.96198,2524.0,2523.6,3.9625]
[1725293937403,3.96182,2524.1,2523.6,3.96248]
[1725293938957,7.9237,2524.1,2523.6,3.96248]
[1725293939397,3.96182,2524.1,2523.6,3.96248]
[1725293939599,7.9237,2524.1,2523.6,3.96248]
[1725293939784,3.96182,2524.1,2523.6,3.96248]
[1725293939988,7.92371,2524.1,2523.6,3.96248]
[1725293940495,3.96182,2524.1,2523.6,3.96248]
[1725293940727,3.96182,2524.1,2523.7,3.96243]
[1725293941374,3.96182,2524.1,2523.8,0.06004856]
[1725293941699,3.96182,2524.1,2523.7,3.96243]
[1725293941899,3.96182,2524.1,2523.9,0.06043447]
[1725293942102,3.96161,2524.3,2523.9,6.23334]
[1725293942400,2.3936,2524.5,2524.0,4.02225686]